{"text_format":"1","workbook":"xlsx","n_sheets":2,"sheets":["Лист1","Рахунок"],"not_rendered":{"charts":0,"images":1,"macros":1,"external_links":0,"defined_names":0,"comments":0,"pivot_tables":0},"unopened":[],"bounds":{"document_bytes":16777216,"sheet_cells":100000,"rows_first":2000,"rows_last":500,"rows_between":2000,"halvings":0,"cell_chars":16384,"cell_head_chars":4096},"cells_cut":0,"cells_raw":0,"read":"whole","date_system":"1900"}

{"sheet":"Лист1","index":0,"n_rows":59,"n_cols":11,"rows_kept":59,"cut":false,"hidden":false,"merged":[]}
[1,{"$f":"IF(A27>1,2,\"\")","v":2},{"$f":"IF(A28>1,3,\"\")","v":3},{"$f":"IF(A29>1,4,\"\")","v":4},{"$f":"IF(A30>1,5,\"\")","v":5},{"$f":"IF(A31>1,6,\"\")","v":6},{"$f":"IF(A32,7,\"\")","v":7},{"$f":"IF(A33>1,8,\"\")","v":""},{"$f":"IF(A34>1,9,\"\")","v":""},{"$f":"IF(A35>1,10,\"\")","v":""}]
[{"$f":"IF(A26>1,A26,\"\")","v":398978},{"$f":"C26&\"/\"&D26","v":"5/10"},null,null,null,null,null,null,{"$f":"IF(I26>1,I26,\"\")","v":27.820087000000001},{"$f":"IF(J26=\"\",C2,J26)","v":"MEGAGRES"},{"$f":"IF(K26=\"\",D2,K26)","v":"ANKARA BR6005"}]
[389617,"5/10",null,null,null,null,null,null,{"$f":"IF(I27>1,I27,\"\")","v":20.599988999999997},{"$f":"IF(J27=\"\",C3,J27)","v":"PAMESA"},{"$f":"IF(K27=\"\",D3,K27)","v":"COWAN LIGHT"}]
[398978,"5/10",null,null,null,null,null,null,{"$f":"IF(I28>1,I28,\"\")","v":27.820087000000001},"MEGAGRES","ANKARA BR6005"]
[124627,"5/10",null,null,null,null,null,null,{"$f":"IF(I29>1,I29,\"\")","v":26.319983999999998},"CERSANIT плитка","Грес А 100 сходинка ST**"]
[370395,"5/10",null,null,null,null,null,null,{"$f":"IF(I30>1,I30,\"\")","v":18.819998999999996},"GOLDEN TILE","ETHNO Мікс Н8Б280"]
[369687,"5/10",null,null,null,null,null,null,{"$f":"IF(I31>1,I31,\"\")","v":20.599988999999997},"PAMESA","RLV. COWAN DARK"]
[370393,"5/10",null,null,null,null,null,null,{"$f":"IF(I32>1,I32,\"\")","v":18.819998999999996},"GOLDEN TILE","ETHNO Мікс Н8Б260"]
["",{"$error":"#N/A"},null,null,null,null,null,null,{"$f":"IF(I33>1,I33,\"\")","v":{"$error":"#N/A"}},0,0]
["",{"$error":"#N/A"},null,null,null,null,null,null,{"$f":"IF(I34>1,I34,\"\")","v":{"$error":"#N/A"}},0,0]
["",{"$error":"#N/A"},null,null,null,null,null,null,{"$f":"IF(I35>1,I35,\"\")","v":{"$error":"#N/A"}},0,0]
["НОМЕР РАХУНКУ","206513","Доставка","Самовивіз","Курєр","Партенрська адресна доставка","Нова Пошта","Курєр + підйом на поверх","За домовленістю","Самовивіз"]
[null,null,"Вартість доставки"]
[{"$f":"A14:G31","v":"#VALUE!"},"Кількість","Вибери од.вим.","м2","Ціна","Ціна зі знижкою","Розмір знижки","шт","пак"]
["м2",12,"м2",{"$f":"IFERROR(IF(AND(C15=\"шт\",E26=\"шт\"),B15,IF(C15=\"шт\",(F26/G26)*B15,IF(C15=\"м2\",H15*(F26/G26),IF(C15=\"компл\",B15*1,IF(C15=\"пак\",(B15*F26)))))),B15)","v":12.24},{"$f":"IF(AND(C15=\"шт\",E26=\"шт\"),B26*D15,IF(C15=\"шт\",((F26/G26)*B15)*B26,IF(C15=\"м2\",D15*B26,IF(C15=\"компл\",B15*B26,IF(C15=\"пак\",D15*B26)))))","v":660.96},{"$f":"IFERROR((E15/100)*(100-G15),((B26/100)*(100-G15)))","v":660.96},null,{"$f":"IF(C15=\"м2\",ROUNDUP((B15/F26)*G26,0))","v":34},{"$f":"IFERROR(IF(C15=\"м2\",ROUNDDOWN(H15/G26,0),IF(OR(C15=\"компл\",OR(C15=\"пак\",OR(C15=\"шт\"))),B15)),\"\")","v":8},{"$f":"IFERROR(IF(C15=\"м2\",CONCATENATE(I15,\" пак \",H15-(I15*G26),\" шт\"),IF(C15=\"шт\",CONCATENATE(I15,\" шт\"),IF(C15=\"пак\",CONCATENATE(I15,\" пак\"),IF(C15=\"компл\",CONCATENATE(I15,\" компл\"),)))),E2)","v":"8 пак 2 шт"},{"$f":"IF(B15=\"\",\"\",F15/D15)","v":54}]
["пак",55,"м2",55.04,4623.3599999999997,4623.3599999999997,null,301,43,"43 пак 0 шт",{"$f":"IF(B16=\"\",\"\",F16/D16)","v":84}]
["шт",12,"м2",12.24,1358.64,1358.64,null,34,8,"8 пак 2 шт",111]
["компл",30,"м2",30,7620,7620,null,540,30,"30 пак 0 шт",254]
[null,58,"м2",58,128818,128818,null,1740,58,"58 пак 0 шт",2221]
[null,44,"м2",44.068571428571431,19874.925714285717,19874.925714285717,null,241,34,"34 пак 3 шт",451.00000000000006]
[null,22,"м2",22,5104,5104,null,660,22,"22 пак 0 шт",232]
[null,null,"м2",0,{"$error":"#N/A"},0,null,{"$error":"#N/A"},"",0,""]
[null,null,"м2",0,{"$error":"#N/A"},0,null,{"$error":"#N/A"},"",0,""]
[null,null,"м2",0,{"$error":"#N/A"},0,null,{"$error":"#N/A"},"",0,""]
["Код","Базова ціна, грн.","Знижка баз., %","Знижка баз. опт., %","Од. вим. ","м2/уп","шт/уп"]
[398978,54,{"$f":"VLOOKUP(A26,$A$38:$K$70556,6,FALSE)","v":5},{"$f":"VLOOKUP(A26,$A$38:$K$70556,7,FALSE)","v":10},{"$f":"VLOOKUP(A26,$A$38:$K$70556,8,FALSE)","v":"м2"},{"$f":"VLOOKUP(A26,$A$38:$K$161522,9,FALSE)","v":1.44},{"$f":"VLOOKUP(A26,$A$38:$K$70556,10,FALSE)","v":4},{"$f":"CONCATENATE(VLOOKUP(A26,$A$38:$K$70556,5,FALSE),\"/\",E26)","v":"/м2"},{"$f":"VLOOKUP(A26,$A$38:$K$70556,11,FALSE)","v":27.820087000000001},{"$f":"IFERROR(VLOOKUP(A26,$A$38:$K$120556,2,FALSE),\"\")","v":"MEGAGRES"},{"$f":"IFERROR(VLOOKUP(A26,$A$38:$K$120556,3,FALSE),\"\")","v":"ANKARA BR6005"}]
[389617,84,5,10,"м2",{"$f":"VLOOKUP(A27,$A$38:$K$161522,9,FALSE)","v":1.28},7,"/м2",20.599988999999997,"PAMESA","COWAN LIGHT"]
[398978,111,5,10,"м2",{"$f":"VLOOKUP(A28,$A$38:$K$169622,9,FALSE)","v":1.44},4,"/м2",27.820087000000001,"MEGAGRES","ANKARA BR6005"]
[124627,254,5,10,"шт",{"$f":"VLOOKUP(A29,$A$38:$K$161522,9,FALSE)","v":1},18,"/шт",26.319983999999998,"CERSANIT плитка","Грес А 100 сходинка ST**"]
[370395,2221,5,10,"шт",1,30,"/шт",18.819998999999996,"GOLDEN TILE","ETHNO Мікс Н8Б280"]
[369687,451,5,10,"м2",1.28,7,"/м2",20.599988999999997,"PAMESA","RLV. COWAN DARK"]
[370393,232,5,10,"шт",1,30,"/шт",18.819998999999996,"GOLDEN TILE","ETHNO Мікс Н8Б260"]
[null,null,{"$error":"#N/A"},{"$error":"#N/A"},{"$error":"#N/A"},{"$error":"#N/A"},{"$error":"#N/A"},{"$error":"#N/A"},{"$error":"#N/A"},"",""]
[null,null,{"$error":"#N/A"},{"$error":"#N/A"},{"$error":"#N/A"},{"$error":"#N/A"},{"$error":"#N/A"},{"$error":"#N/A"},{"$error":"#N/A"},"",""]
[null,null,{"$error":"#N/A"},{"$error":"#N/A"},{"$error":"#N/A"},{"$error":"#N/A"},{"$error":"#N/A"},{"$error":"#N/A"},{"$error":"#N/A"},"",""]
[]
["Код","Торговельна марка","Найменування","Група","Базова ціна, грн.","Знижка баз., %","Знижка баз. опт., %","Од. вим. ","м2/уп","шт/уп","кг/уп"]
[398978,"MEGAGRES","ANKARA BR6005","Зовнішня плитка",null,5,10,"м2",1.44,4,27.820087000000001]
[369685,"PAMESA","COWAN ARGENT","Личкувальна плитка",null,5,10,"м2",1.28,7,20.599988999999997]
[389617,"PAMESA","COWAN LIGHT","Личкувальна плитка",null,5,10,"м2",1.28,7,20.599988999999997]
[369687,"PAMESA","RLV. COWAN DARK","Личкувальна плитка",null,5,10,"м2",1.28,7,20.599988999999997]
[389618,"PAMESA","RLV. COWAN LIGHT","Личкувальна плитка",null,5,10,"м2",1.28,7,20.599988999999997]
[370395,"GOLDEN TILE","ETHNO Мікс Н8Б280","Декор",null,5,10,"шт",1,30,18.819998999999996]
[371225,"GOLDEN TILE","ETHNO Мікс Н8Б270","Декор",null,5,10,"шт",1,30,18.819998999999996]
[371226,"GOLDEN TILE","ETHNO Мікс Н8Б290","Декор",null,5,10,"шт",1,30,18.819998999999996]
[370393,"GOLDEN TILE","ETHNO Мікс Н8Б260","Декор",null,5,10,"шт",1,30,18.819998999999996]
[325927,"ALMERA CERAMICA","MAJOLICA тако","Декор",null,5,10,"шт",1,35,4.38]
[124627,"CERSANIT плитка","Грес А 100 сходинка ST**","Сходинка",null,5,10,"шт",1,18,26.319983999999998]
[331795,"DELCONCA","SASSOFELTRO A/HSF10","Личкувальна плитка",null,5,10,"шт",1,15,3.0749999999999997]
[264670,"OPOCZNO","BLACK SATIN","Личкувальна плитка",null,5,10,"м2",1.3,13,21.320003]
[371933,"GOLDEN TILE","STONEHENGE Mod світло-сірий 44G540/44G549","Декор",null,5,10,"шт",1,3,24.899984999999997]
[314337,"SUPER CERAMICA","ESTRATO MARRON","Личкувальна плитка",null,5,10,"м2",1.44,12,21.900008]
[285155,"GOLDEN TILE","КАРРАРА БЕЛЫЙ Е50059 (Е50051)","Личкувальна плитка",null,5,10,"м2",1.44,8,24.109966]
[347557,"GOLDEN TILE","ALLEN WHITE 470570","Зовнішня плитка",null,5,10,"м2",1.1929999999999998,13,27.830822999999999]
[265426,"OPOCZNO","BLACK&WHITE PATTERN F","Личкувальна плитка",null,5,10,"м2",1.3,13,21.320003]
[371262,"GOLDEN TILE","ВОЛНА бежевий 4В1830","Зовнішня плитка",null,5,10,"м2",1.1200000000000001,7,20.05001]
[348916,"GEOTILES","UT. CHESTER MARFIL","Личкувальна плитка",null,5,10,"м2",1.58,9,23.000019999999999]
[280185,"GOLDEN TILE","PETRARCA БЕЖЕВЫЙ M91051","Личкувальна плитка",null,5,10,"м2",1.44,8,24.109966]
[null,null,null,"Зовнішня плитка"]

{"sheet":"Рахунок","index":1,"n_rows":114,"n_cols":32,"rows_kept":114,"cut":false,"hidden":false,"merged":[[32,2,33,4],[34,5,34,30],[32,5,32,22],[12,2,12,4],[13,2,13,4],[32,1,33,1],[33,5,33,22],[26,2,27,4],[28,2,29,4],[22,2,23,4],[24,2,25,4],[12,25,12,27],[13,25,13,27],[30,25,30,27],[31,25,31,27],[22,23,22,24],[23,23,23,24],[24,23,24,24],[25,23,25,24],[26,23,26,24],[22,25,22,27],[23,25,23,27],[24,25,24,27],[25,25,25,27],[43,22,47,32],[31,31,31,33],[26,31,26,33],[27,31,27,33],[21,31,21,33],[16,31,16,33],[17,31,17,33],[14,5,14,22],[15,5,15,22],[16,5,16,22],[32,23,32,24],[33,23,33,24],[19,31,19,33],[20,31,20,33],[22,31,22,33],[23,31,23,33],[24,31,24,33],[33,28,33,30],[33,31,33,33],[34,31,34,33],[14,25,14,27],[15,25,15,27],[16,25,16,27],[29,25,29,27],[14,31,14,33],[15,31,15,33],[18,31,18,33],[29,28,29,30],[30,28,30,30],[31,28,31,30],[32,28,32,30],[25,31,25,33],[28,31,28,33],[29,31,29,33],[30,31,30,33],[32,31,32,33],[22,28,22,30],[23,28,23,30],[24,28,24,30],[25,28,25,30],[26,28,26,30],[27,28,27,30],[28,28,28,30],[5,4,5,19],[5,20,5,23],[6,20,6,23],[5,24,5,28],[6,24,6,28],[18,23,18,24],[19,23,19,24],[20,23,20,24],[21,23,21,24],[17,25,17,27],[18,25,18,27],[19,25,19,27],[20,25,20,27],[21,25,21,27],[12,5,12,22],[13,5,13,22],[17,5,17,22],[18,5,18,22],[19,5,19,22],[20,5,20,22],[21,5,21,22],[32,25,32,27],[33,25,33,27],[35,29,35,33],[34,1,34,4],[6,3,6,15],[7,3,7,15],[8,3,8,15],[9,3,9,15],[10,3,10,15],[11,3,11,15],[12,23,12,24],[13,23,13,24],[14,23,14,24],[15,23,15,24],[16,23,16,24],[17,23,17,24],[27,23,27,24],[28,23,28,24],[29,23,29,24],[30,23,30,24],[31,23,31,24],[27,25,27,27],[12,31,12,33],[13,31,13,33],[28,25,28,27],[12,28,12,30],[13,28,13,30],[14,28,14,30],[15,28,15,30],[16,28,16,30],[17,28,17,30],[18,28,18,30],[19,28,19,30],[20,28,20,30],[26,25,26,27],[21,28,21,30],[22,1,23,1],[24,1,25,1],[26,1,27,1],[28,1,29,1],[30,1,31,1],[14,1,15,1],[14,2,15,4],[16,2,17,4],[18,2,19,4],[20,2,21,4],[16,1,17,1],[18,1,19,1],[20,1,21,1],[30,2,31,4],[27,5,27,22],[28,5,28,22],[29,5,29,22],[30,5,30,22],[31,5,31,22],[22,5,22,22],[23,5,23,22],[24,5,24,22],[25,5,25,22],[26,5,26,22]]}
[]
[]
[]
[]
[]
[null,null,null,null,"РАХУНОК РОЗДРІБНОГО ПОКУПЦЯ №",null,null,null,null,null,null,null,null,null,null,null,null,null,null,null,{"$f":"Лист1!B12","v":"206513"},null,null,null,{"$f":"NOW()","v":"2019-04-16T10:31:55.220"}]
[null,null,null,{"$f":"IF(E6=\"Реквізити на безготівкову оплату рахунку №\",Лист1!H8,\"\")","v":""}]
[]
[null,null,null,{"$f":"IF(E6=\"РАХУНОК РОЗДРІБНОГО ПОКУПЦЯ №\",Лист1!H5,\"\")","v":0}]
[]
[]
[null,null,null,{"$f":"IF(E6=\"РАХУНОК РОЗДРІБНОГО ПОКУПЦЯ №\",Лист1!H7,\"\")","v":0}]
[null,"№","Артикул",null,null,"Виробник",null,null,null,null,null,null,null,null,null,null,null,null,null,null,null,null,null,{"$f":"Лист1!F25","v":"м2/уп"},null,"К-сть ",null,null,"Ціна",null,null,"Сума, UAH"]
[null,null,null,null,null,"Найменування",null,null,null,null,null,null,null,null,null,null,null,null,null,null,null,null,null,{"$f":"Лист1!G25","v":"шт/уп"},null,"Всього"]
[null,{"$f":"Лист1!A1","v":1},{"$f":"Лист1!A26","v":398978},null,null,{"$f":"IFERROR(IF(Лист1!J2=0,\"\",Лист1!J2),\"\")","v":"MEGAGRES"},null,null,null,null,null,null,null,null,null,null,null,null,null,null,null,null,null,{"$f":"Лист1!F26","v":1.44},null,{"$f":"IF(Лист1!D15<0.001,\"\",Лист1!D15)","v":12.24},null,null,{"$f":"IF(Лист1!B26<0.001,\"\",Лист1!K15)","v":54},null,null,{"$f":"IFERROR(Z15*AC15,\"\")","v":660.96}]
[null,null,null,null,null,{"$f":"IF(Лист1!K2=0,\"\",Лист1!K2)","v":"ANKARA BR6005"},null,null,null,null,null,null,null,null,null,null,null,null,null,null,null,null,null,{"$f":"Лист1!G26","v":4},null,{"$f":"IF(Лист1!J15<0.001,\"\",Лист1!J15)","v":"8 пак 2 шт"}]
[null,{"$f":"Лист1!B1","v":2},{"$f":"Лист1!A3","v":389617},null,null,{"$f":"IF(Лист1!J3=0,\"\",Лист1!J3)","v":"PAMESA"},null,null,null,null,null,null,null,null,null,null,null,null,null,null,null,null,null,{"$f":"Лист1!F27","v":1.28},null,{"$f":"IF(Лист1!D16<0.001,\"\",Лист1!D16)","v":55.04},null,null,{"$f":"IF(Лист1!B27<0.001,\"\",Лист1!K16)","v":84},null,null,{"$f":"IFERROR(Z17*AC17,\"\")","v":4623.3599999999997}]
[null,null,null,null,null,{"$f":"IF(Лист1!K3=0,\"\",Лист1!K3)","v":"COWAN LIGHT"},null,null,null,null,null,null,null,null,null,null,null,null,null,null,null,null,null,{"$f":"Лист1!G27","v":7},null,{"$f":"IF(Лист1!J16<0.001,\"\",Лист1!J16)","v":"43 пак 0 шт"}]
[null,{"$f":"Лист1!C1","v":3},{"$f":"Лист1!A4","v":398978},null,null,{"$f":"IF(Лист1!J4=0,\"\",Лист1!J4)","v":"MEGAGRES"},null,null,null,null,null,null,null,null,null,null,null,null,null,null,null,null,null,{"$f":"Лист1!F28","v":1.44},null,{"$f":"IF(Лист1!D17<0.001,\"\",Лист1!D17)","v":12.24},null,null,{"$f":"IF(Лист1!B28<0.001,\"\",Лист1!K17)","v":111},null,null,{"$f":"IFERROR(Z19*AC19,\"\")","v":1358.64}]
[null,null,null,null,null,{"$f":"IF(Лист1!K4=0,\"\",Лист1!K4)","v":"ANKARA BR6005"},null,null,null,null,null,null,null,null,null,null,null,null,null,null,null,null,null,{"$f":"Лист1!G28","v":4},null,{"$f":"IF(Лист1!J17<0.001,\"\",Лист1!J17)","v":"8 пак 2 шт"}]
[null,{"$f":"Лист1!D1","v":4},{"$f":"Лист1!A5","v":124627},null,null,{"$f":"IF(Лист1!J5=0,\"\",Лист1!J5)","v":"CERSANIT плитка"},null,null,null,null,null,null,null,null,null,null,null,null,null,null,null,null,null,{"$f":"Лист1!F29","v":1},null,{"$f":"IF(Лист1!D18<0.001,\"\",Лист1!D18)","v":30},null,null,{"$f":"IF(Лист1!B29<0.001,\"\",Лист1!K18)","v":254},null,null,{"$f":"IFERROR(Z21*AC21,\"\")","v":7620}]
[null,null,null,null,null,{"$f":"IF(Лист1!K5=0,\"\",Лист1!K5)","v":"Грес А 100 сходинка ST**"},null,null,null,null,null,null,null,null,null,null,null,null,null,null,null,null,null,{"$f":"Лист1!G29","v":18},null,{"$f":"IF(Лист1!J18<0.001,\"\",Лист1!J18)","v":"30 пак 0 шт"}]
[null,{"$f":"Лист1!E1","v":5},{"$f":"Лист1!A6","v":370395},null,null,{"$f":"IF(Лист1!J6=0,\"\",Лист1!J6)","v":"GOLDEN TILE"},null,null,null,null,null,null,null,null,null,null,null,null,null,null,null,null,null,{"$f":"Лист1!F30","v":1},null,{"$f":"IF(Лист1!D19<0.001,\"\",Лист1!D19)","v":58},null,null,{"$f":"IF(Лист1!B30<0.001,\"\",Лист1!K19)","v":2221},null,null,{"$f":"IFERROR(Z23*AC23,\"\")","v":128818}]
[null,null,null,null,null,{"$f":"IF(Лист1!K6=0,\"\",Лист1!K6)","v":"ETHNO Мікс Н8Б280"},null,null,null,null,null,null,null,null,null,null,null,null,null,null,null,null,null,{"$f":"Лист1!G30","v":30},null,{"$f":"IF(Лист1!J19<0.001,\"\",Лист1!J19)","v":"58 пак 0 шт"}]
[null,{"$f":"Лист1!F1","v":6},{"$f":"Лист1!A7","v":369687},null,null,{"$f":"IF(Лист1!J7=0,\"\",Лист1!J7)","v":"PAMESA"},null,null,null,null,null,null,null,null,null,null,null,null,null,null,null,null,null,{"$f":"Лист1!F31","v":1.28},null,{"$f":"IF(Лист1!D20<0.001,\"\",Лист1!D20)","v":44.068571428571431},null,null,{"$f":"IF(Лист1!B31<0.001,\"\",Лист1!K20)","v":451.00000000000006},null,null,{"$f":"IFERROR(Z25*AC25,\"\")","v":19874.925714285717}]
[null,null,null,null,null,{"$f":"IF(Лист1!K7=0,\"\",Лист1!K7)","v":"RLV. COWAN DARK"},null,null,null,null,null,null,null,null,null,null,null,null,null,null,null,null,null,{"$f":"Лист1!G31","v":7},null,{"$f":"IF(Лист1!J20<0.001,\"\",Лист1!J20)","v":"34 пак 3 шт"}]
[null,{"$f":"Лист1!G1","v":7},{"$f":"Лист1!A8","v":370393},null,null,{"$f":"IF(Лист1!J8=0,\"\",Лист1!J8)","v":"GOLDEN TILE"},null,null,null,null,null,null,null,null,null,null,null,null,null,null,null,null,null,{"$f":"Лист1!F32","v":1},null,{"$f":"IF(Лист1!D21<0.001,\"\",Лист1!D21)","v":22},null,null,{"$f":"IF(Лист1!B32<0.001,\"\",Лист1!K21)","v":232},null,null,{"$f":"IFERROR(Z27*AC27,\"\")","v":5104}]
[null,null,null,null,null,{"$f":"IF(Лист1!K8=0,\"\",Лист1!K8)","v":"ETHNO Мікс Н8Б260"},null,null,null,null,null,null,null,null,null,null,null,null,null,null,null,null,null,{"$f":"Лист1!G32","v":30},null,{"$f":"IF(Лист1!J21<0.001,\"\",Лист1!J21)","v":"22 пак 0 шт"}]
[null,{"$f":"Лист1!H1","v":""},{"$f":"Лист1!A9","v":""},null,null,{"$f":"IF(Лист1!J9=0,\"\",Лист1!J9)","v":""},null,null,null,null,null,null,null,null,null,null,null,null,null,null,null,null,null,{"$f":"Лист1!F33","v":{"$error":"#N/A"}},null,{"$f":"IF(Лист1!D22<0.001,\"\",Лист1!D22)","v":""},null,null,{"$f":"IF(Лист1!B33<0.001,\"\",Лист1!K22)","v":""},null,null,{"$f":"IFERROR(Z29*AC29,\"\")","v":""}]
[null,null,null,null,null,{"$f":"IF(Лист1!K9=0,\"\",Лист1!K9)","v":""},null,null,null,null,null,null,null,null,null,null,null,null,null,null,null,null,null,{"$f":"Лист1!G33","v":{"$error":"#N/A"}},null,{"$f":"IF(Лист1!J22<0.001,\"\",Лист1!J22)","v":""}]
[null,{"$f":"Лист1!I1","v":""},{"$f":"Лист1!A10","v":""},null,null,{"$f":"IF(Лист1!J10=0,\"\",Лист1!J10)","v":""},null,null,null,null,null,null,null,null,null,null,null,null,null,null,null,null,null,{"$f":"Лист1!F34","v":{"$error":"#N/A"}},null,{"$f":"IF(Лист1!D23<0.001,\"\",Лист1!D23)","v":""},null,null,{"$f":"IF(Лист1!B34<0.001,\"\",Лист1!K23)","v":""},null,null,{"$f":"IFERROR(Z31*AC31,\"\")","v":""}]
[null,null,null,null,null,{"$f":"IF(Лист1!K10=0,\"\",Лист1!K10)","v":""},null,null,null,null,null,null,null,null,null,null,null,null,null,null,null,null,null,{"$f":"Лист1!G34","v":{"$error":"#N/A"}},null,{"$f":"IF(Лист1!J23<0.001,\"\",Лист1!J23)","v":""}]
[null,{"$f":"Лист1!J1","v":""},{"$f":"Лист1!A11","v":""},null,null,{"$f":"IF(Лист1!J11=0,\"\",Лист1!J11)","v":""},null,null,null,null,null,null,null,null,null,null,null,null,null,null,null,null,null,{"$f":"Лист1!F35","v":{"$error":"#N/A"}},null,{"$f":"IF(Лист1!D24<0.001,\"\",Лист1!D24)","v":""},null,null,{"$f":"IF(Лист1!B35<0.001,\"\",Лист1!K24)","v":""},null,null,{"$f":"IFERROR(Z33*AC33,\"\")","v":""}]
[null,null,null,null,null,{"$f":"IF(Лист1!K11=0,\"\",Лист1!K11)","v":""},null,null,null,null,null,null,null,null,null,null,null,null,null,null,null,null,null,{"$f":"Лист1!G35","v":{"$error":"#N/A"}},null,{"$f":"IF(Лист1!J24<0.001,\"\",Лист1!J24)","v":""}]
[null,"Отримання",null,null,null,{"$f":"Лист1!D12","v":"Самовивіз"},null,null,null,null,null,null,null,null,null,null,null,null,null,null,null,null,null,null,null,null,null,null,null,null,null,{"$f":"Лист1!D13","v":0}]
[null,null,null,null,null,null,null,null,null,null,null,null,null,null,null,null,null,null,null,null,null,null,null,null,null,null,null,null,"Всього, UAH",{"$f":"SUMIF(AF15:AF35,\">0\")","v":168059.88571428572}]
[]
[]
[]
[]
[]
[]
[]
[null,"Ми працюємо",null,null,null,null,null,null,null,null,null,null,null,null,null,null,null,null,null,null,null,null,"Замовлення вагою вище 150 кг в регіони відправляються партнерською доставкою. Це безпечно та вдвічі дешевже ніж тарифи поштових перевізників."]
[null,"Пн-Пт 10:00 - 19:00"]
[null,"Сб-Нд 10:00 - 18:00"]
[]
[null,"Постачальник:"]
[null,"Інтернет-магазин Plitholl.com.ua"]
[null,"ФОП Баняс Владислав Васильович"]
[null,"Код ЄДРПОУ: 3359306815"]
[]
[]
[null,null,"Отримав та перевірив",null,null,null,null,null,null,null,null,null,null,null,null,null,null,null,null,null,null,null,null,"Рахунок виписав"]
[]
[]
[]
[null,"Плитка"]
[null,"ABSOLUT KERAMIKA 1",null,null,null,null,null,null,"Del Conca 23",null,null,null,null,null,null,"LA FABBRICA 27",null,null,null,null,null,null,null,"Prissmacer 36"]
[null,"ALELUIA CERAMIC 11",null,null,null,null,null,null,"Dual Gres 41",null,null,null,null,null,null,"LA FAENZA 77",null,null,null,null,null,null,null,"REALONDA 23"]
[null,"APARICI 46",null,null,null,null,null,null,"EXAGRES 91",null,null,null,null,null,null,"LEONARDO 20",null,null,null,null,null,null,null,"REVIGRES 16"]
[null,"APE Ceramica 428",null,null,null,null,null,null,"FLAVIKER 22",null,null,null,null,null,null,"LIVIN CERAMICS 3",null,null,null,null,null,null,null,"REX 9"]
[null,"ASCOT 12",null,null,null,null,null,null,"FLORIM GROUP 5",null,null,null,null,null,null,"LOVE CERAMIC 11",null,null,null,null,null,null,null,"ROBERTO CAVALLI 19"]
[null,"AZTECA 59",null,null,null,null,null,null,"Fabresa 14",null,null,null,null,null,null,"Lasselsberger Rako 130",null,null,null,null,null,null,null,"RONDINE 36"]
[null,"Alaplana 103",null,null,null,null,null,null,"GAMBARELLI 4",null,null,null,null,null,null,"MAINZU 83",null,null,null,null,null,null,null,"Rocersa 84"]
[null,"Alfobel 35",null,null,null,null,null,null,"GEOTILES 196",null,null,null,null,null,null,"MAPISA 6",null,null,null,null,null,null,null,"SALONI 42"]
[null,"Almera Ceramica 404",null,null,null,null,null,null,"GOLDEN TILE 358",null,null,null,null,null,null,"MARCA CORONA 49",null,null,null,null,null,null,null,"SDS KERAMIK 41"]
[null,"Argenta Ceramica 131",null,null,null,null,null,null,"GRAND KERAMA 31",null,null,null,null,null,null,"MAYOLICA 14",null,null,null,null,null,null,null,"SERENISSIMA 18"]
[null,"Ariana 5",null,null,null,null,null,null,"GRANITI FIANDRE 14",null,null,null,null,null,null,"MEGAGRES 90",null,null,null,null,null,null,null,"SETTECENTO 6"]
[null,"Azulev 47",null,null,null,null,null,null,"GRESMANC 1",null,null,null,null,null,null,"MONOPOLE CERAMICA 79",null,null,null,null,null,null,null,"Sanchis 5"]
[null,"BALDOCER 119",null,null,null,null,null,null,"Gemma 39",null,null,null,null,null,null,"NATUCER 1",null,null,null,null,null,null,null,"Super Ceramica 23"]
[null,"BESTILE 84",null,null,null,null,null,null,"Goldencer 47",null,null,null,null,null,null,"NOVABELL 115",null,null,null,null,null,null,null,"TERMAL SERAMIK 8"]
[null,"Bellavista Ceramica 47",null,null,null,null,null,null,"Gresan 8",null,null,null,null,null,null,"NOVOGRES 13",null,null,null,null,null,null,null,"Tau Ceramica 9"]
[null,"CAESAR 5",null,null,null,null,null,null,"IBERO 55",null,null,null,null,null,null,"NOWA GALA 12",null,null,null,null,null,null,null,"Unicom Starker 8"]
[null,"CERAMICA DESEO 12",null,null,null,null,null,null,"IMSO CERAMICA 1",null,null,null,null,null,null,"Newker 13",null,null,null,null,null,null,null,"VALLELUNGA 11"]
[null,"CERASARDA 1",null,null,null,null,null,null,"IRIS 1",null,null,null,null,null,null,"OPOCZNO PL 4",null,null,null,null,null,null,null,"VENIS 159"]
[null,"CERRAD 95",null,null,null,null,null,null,"ITALGRANITI 10",null,null,null,null,null,null,"OPOCZNO UA 377",null,null,null,null,null,null,null,"VIVES 69"]
[null,"CERROL 16",null,null,null,null,null,null,"ITT CERAMIC 24",null,null,null,null,null,null,"OSET 56",null,null,null,null,null,null,null,"Venus 12"]
[null,"CRISTACER 4",null,null,null,null,null,null,"Imola Ceramica 155",null,null,null,null,null,null,"OVERLAND 6",null,null,null,null,null,null,null,"Zeus Ceramica 132"]
[null,"Ceramica Gomez 22",null,null,null,null,null,null,"Impronta 50",null,null,null,null,null,null,"Oceano 14",null,null,null,null,null,null,null,"АТЕМ 48"]
[null,"Ceramica de LUX 27",null,null,null,null,null,null,"KITO 5",null,null,null,null,null,null,"PAMESA 278",null,null,null,null,null,null,null,"Агромат-Декор 6"]
[null,"Ceranosa 1",null,null,null,null,null,null,"Keramo Rosso 3",null,null,null,null,null,null,"PERONDA 209",null,null,null,null,null,null,null,"Берёзакерамика 34"]
[null,"Cersanit 308",null,null,null,null,null,null,"Keratile 9",null,null,null,null,null,null,"Piemme 3",null,null,null,null,null,null,null,"КІП КЕРАМІКА 9"]
[null,"Cicogres 27",null,null,null,null,null,null,"L'Antic Colonial 11",null,null,null,null,null,null,"Porcelanite Dos 5",null,null,null,null,null,null,null,"Керамика Полесье 32"]
[]
[null,"Ламінат",null,null,null,null,null,null,null,null,"Паркетная дошка",null,null,null,null,null,null,"Массивна доска",null,null,null,null,null,null,"Вінил"]
[null,"Berry Alloc",null,null,null,null,null,null,null,null,"Boen",null,null,null,null,null,null,"DomCabinet",null,null,null,null,null,null,"DomCabinet"]
[null,"DomCabinet",null,null,null,null,null,null,null,null,"Skema",null,null,null,null,null,null,null,null,null,null,null,null,null,"LOC"]
[null,"Pergo",null,null,null,null,null,null,null,null,"Литва",null,null,null,null,null,null,null,null,null,null,null,null,null,"Skema"]
[null,"Quick Step",null,null,null,null,null,null,null,null,null,null,null,null,null,null,null,null,null,null,null,null,null,null,"Berry Alloc"]
[null,"Schöner",null,null,null,null,null,null,null,null,null,null,null,null,null,null,null,null,null,null,null,null,null,null,"Quick Step"]
[null,"Skema"]
[null,"Villeroy & Boch"]
[null,"Бюджетная коллекция"]
[]
[null,null,null,null,null,null,null,null,null,null,null,null,null,null,"САНТЕХНІКА"]
[null,"ACO 83",null,null,null,null,null,null,null,null,"FLAMINIA 1",null,null,null,null,null,null,null,"KOLO 247",null,null,null,null,null,"Pax 13"]
[null,"AM.PM 239",null,null,null,null,null,null,null,null,"Franke 8",null,null,null,null,null,null,null,"KOS 1",null,null,null,null,null,"Porta 3"]
[null,"Appollo 17",null,null,null,null,null,null,null,null,"GBGroup 4",null,null,null,null,null,null,null,"Kaldewei 37",null,null,null,null,null,"RIHO 62"]
[null,"Axor 235",null,null,null,null,null,null,null,null,"GENWEC 21",null,null,null,null,null,null,null,"Kludi 346",null,null,null,null,null,"ROYO 45"]
[null,"BRAVAT 1",null,null,null,null,null,null,null,null,"GESSI 40",null,null,null,null,null,null,null,"LAUFEN 89",null,null,null,null,null,"SIMAS 57"]
[null,"Balteco 6",null,null,null,null,null,null,null,null,"Geberit 105",null,null,null,null,null,null,null,"Labor Legno 38",null,null,null,null,null,"San Swiss 96"]
[null,"Bette 13",null,null,null,null,null,null,null,null,"Gentry Home 1",null,null,null,null,null,null,null,"Langberger 73",null,null,null,null,null,"Smavit 9"]
[null,"Bossini 1",null,null,null,null,null,null,null,null,"Goldman 1",null,null,null,null,null,null,null,"MARGAROLI 14",null,null,null,null,null,"Soler&Palau 4"]
[null,"CIELO 29",null,null,null,null,null,null,null,null,"Grohe 309",null,null,null,null,null,null,null,"Mario 30",null,null,null,null,null,"TREESSE 3"]
[null,"CISAL 2",null,null,null,null,null,null,null,null,"Gustavsberg 26",null,null,null,null,null,null,null,"NIC Design 2",null,null,null,null,null,"Tece 83"]
[null,"Cersanit 436",null,null,null,null,null,null,null,null,"HUPPE 2",null,null,null,null,null,null,null,"NOKEN 1",null,null,null,null,null,"Terranit 1"]
[null,"DEVIT 731",null,null,null,null,null,null,null,null,"Hansgrohe 590",null,null,null,null,null,null,null,"Nicoll 13",null,null,null,null,null,"VAGNERPLAST 25"]
[null,"DIETSCHE 1",null,null,null,null,null,null,null,null,"IDO 26",null,null,null,null,null,null,null,"OLIVEIRA 42",null,null,null,null,null,"Viega 36"]
[null,"DURAVIT 22",null,null,null,null,null,null,null,null,"INSTAL PROJEKT 40",null,null,null,null,null,null,null,"ORAS 78",null,null,null,null,null,"Villeroy&Boch 185"]
[null,"Damixa 34",null,null,null,null,null,null,null,null,"JACUZZI 1",null,null,null,null,null,null,null,"PAA 29",null,null,null,null,null,"WGT 6"]
[null,"EMCO 32",null,null,null,null,null,null,null,null,"Jacob Delafon 7",null,null,null,null,null,null,null,"PRIMERA 133",null,null,null,null,null,"Zehnder 1"]
[null,"FERRO 99",null,null,null,null,null,null,null,null,"KERAMAG 69",null,null,null,null,null,null,null,"Paffoni 1",null,null,null,null,null,"Аква Родос 120"]
[null,null,null,null,null,null,null,null,null,null,null,null,null,null,null,null,null,null,null,null,null,null,null,null,"ТОВ \"MCH ІНЖИНІРИНГ\" 2"]